bitfinex/quotes_SOLUSD_20250902
["timestamp","ask_amount","ask_price","bid_price","bid_amount"]
[1756822039785,0.01035917,203.8,203.79,59.42207872]
[1756822040093,0.06,203.82,203.81,39.59559401]
[1756822040397,0.06,203.82,203.81,53.0610675]
[1756822040587,0.06,203.82,203.81,90.96860931]
[1756822040786,0.06,203.82,203.81,99.1010675]
[1756822041790,0.2,203.96,203.95,0.42648471]
[1756822041989,0.2,203.96,203.95,67.53453691]
[1756822042191,0.2,203.96,203.95,72.43769944]
[1756822042408,0.2,203.96,203.95,73.09769944]
[1756822042615,0.2,203.96,203.95,99.09769944]
[1756822042791,0.2,203.96,203.95,73.07769944]
[1756822042993,0.2,203.96,203.95,14.02207872]
[1756822043306,0.2,203.96,203.95,67.51453691]
[1756822043507,0.2,203.96,203.95,68.17453691]
[1756822043710,0.2,203.96,203.95,73.07769944]
[1756822043911,0.2,203.96,203.95,68.17453691]
[1756822044710,0.2,203.96,203.95,73.07769944]
[1756822044886,8.13245819,203.99,203.89,6.05649394]
[1756822045087,8.13245819,203.99,203.93,8.13245819]
[1756822045312,0.67,204.0,203.97,13.73775558]
[1756822045492,8.13245819,203.99,203.97,59.07775558]
[1756822045691,0.67,204.0,203.97,59.07775558]
[1756822045692,8.80245819,204.0,203.97,59.21991715]
[1756822046218,26.06,204.03,203.97,14.02207872]
[1756822046420,26.06,204.03,203.81,35.38]
[1756822046421,13.9048996,203.98,203.81,35.38]
[1756822046623,0.67,203.97,203.87,8.13245819]
[1756822046802,8.13245819,203.95,203.9,14.02207872]
[1756822047012,8.80245819,203.95,203.92,13.59559401]
[1756822047347,8.13245819,203.93,203.83,13.59559401]
[1756822047501,12.21736431,203.91,203.86,13.59559401]
[1756822047827,12.21736431,203.91,203.88,13.59559401]
[1756822048023,12.88736431,203.91,203.89,45.32]
[1756822048227,0.67,203.91,203.89,45.32]
[1756822048414,0.87,203.98,203.92,13.59559401]
[1756822048721,0.87,203.98,203.94,13.87991715]
[1756822048907,5.77250418,203.98,203.94,13.87991715]
[1756822049108,0.87,203.98,203.95,0.14216157]
[1756822049341,0.87,203.98,203.97,0.14216157]
[1756822049342,0.2,203.98,203.97,0.14216157]
[1756822049848,0.06,204.03,204.01,26.0]
[1756822050127,0.06,204.03,204.02,72.21944303]
[1756822050311,1e-08,204.03,204.02,77.12092327]
[1756822050504,0.06,204.06,204.05,39.73775558]
[1756822050707,0.06,204.06,204.05,97.53944303]
[1756822050926,0.06,204.06,204.05,52.23944303]
[1756822051134,0.06,204.06,204.05,98.19944303]
[1756822051302,0.06,204.06,204.05,59.32207872]
[1756822051631,0.06,204.06,204.05,71.53944303]
[1756822051801,0.06,204.06,204.05,14.02207872]
[1756822052137,0.06,204.06,204.05,59.32207872]
[1756822052309,12.94736431,204.06,204.01,0.14216157]
[1756822052504,12.94736431,204.06,204.0,35.36]
[1756822052505,12.21736431,204.02,204.0,35.36]
[1756822052699,0.67,204.05,204.01,58.87559401]
[1756822052919,0.67,204.04,204.01,58.87559401]
[1756822053093,12.88736431,204.03,204.01,58.87559401]
[1756822053525,12.21736431,204.04,204.02,0.14216157]
[1756822053724,0.73,204.06,204.02,0.42648471]
[1756822053914,12.88736431,204.05,204.02,0.42648471]
[1756822054109,0.67,204.05,204.02,0.42648471]
[1756822054312,0.06,204.06,204.04,0.42648471]
[1756822054515,0.06,204.06,204.05,59.15991715]
[1756822054710,0.06,204.06,204.05,59.30207872]
[1756822054928,0.06,204.06,204.05,71.51944303]
[1756822055329,0.06,204.06,204.05,59.30207872]
[1756822056442,0.06,204.06,204.0,62.02]
[1756822056443,12.94736431,204.06,204.0,35.36]
[1756822056736,12.21736431,204.01,204.0,35.36]
[1756822056936,0.06,204.06,204.01,13.59559401]
[1756822057150,12.21736431,204.05,204.01,13.59559401]
[1756822057336,12.27736431,204.06,204.04,0.14216157]
[1756822057630,12.88736431,204.05,204.02,0.42648471]
[1756822057816,12.21736431,204.04,204.03,45.26]
[1756822058216,12.88736431,204.04,204.03,45.26]
[1756822058429,17.78836411,204.04,204.03,45.26]
[1756822058948,43.78836411,204.04,204.0,35.39]
[1756822059245,38.21736431,204.02,204.01,45.24]
[1756822059428,38.92736431,204.02,204.01,45.24]
[1756822060006,38.92736431,204.02,203.97,0.03]
[1756822060332,43.11980572,203.98,203.97,26.49]
[1756822060515,31.61244141,203.98,203.97,26.49]
[1756822060716,17.82980572,203.98,203.97,26.49]
[1756822060907,43.82980572,203.98,203.97,26.49]
[1756822061115,26.0,203.96,203.95,0.03]
[1756822061330,38.21736431,203.96,203.95,0.03]
[1756822062410,38.21736431,203.96,203.95,45.27]
[1756822062411,4.90292214,203.96,203.95,45.27]
[1756822062610,17.12028645,203.96,203.95,45.27]
[1756822062805,17.83028645,203.96,203.95,45.27]
[1756822063424,12.21736431,203.96,203.95,45.27]
[1756822063623,12.92736431,203.96,203.95,0.03]
[1756822064231,12.92736431,203.96,203.88,45.22]
[1756822064436,4.90268176,203.97,203.88,45.22]
[1756822064616,12.21736431,203.92,203.89,0.14216157]
[1756822064938,26.0,203.94,203.89,0.14216157]
[1756822065235,26.0,203.94,203.9,45.22]
[1756822065442,12.21736431,203.92,203.9,45.22]
[1756822065734,26.0,203.94,203.89,0.14216157]
[1756822065735,12.21736431,203.91,203.89,45.22]
[1756822065912,26.0,203.94,203.89,45.22]
[1756822065913,12.21736431,203.9,203.89,45.22]
[1756822066231,26.0,203.87,203.82,45.22]
[1756822066422,12.21736431,203.86,203.82,45.22]
[1756822066607,17.12252655,203.87,203.83,0.14216157]
[1756822067045,12.21736431,203.84,203.8,13.59559401]
[1756822067220,12.21736431,203.81,203.76,0.65]
[1756822067533,12.21736431,203.77,203.69,35.34]
[1756822067720,12.21736431,203.73,203.7,45.87]
[1756822067917,12.21736431,203.73,203.71,0.65]
[1756822068122,12.21736431,203.74,203.72,0.65]
[1756822068327,12.21736431,203.75,203.72,0.65]
[1756822068835,30.90677134,203.8,203.73,13.59559401]
[1756822069039,12.21736431,203.74,203.73,13.59559401]
[1756822069232,12.21736431,203.75,203.74,0.14216157]
[1756822069432,12.21736431,203.76,203.74,45.36216157]
[1756822069633,12.21736431,203.75,203.74,45.36216157]
[1756822070130,0.71,203.87,203.76,0.14216157]
[1756822070326,0.71,203.87,203.77,13.87991715]
[1756822070524,12.21736431,203.82,203.77,13.87991715]
[1756822070836,12.21736431,203.8,203.77,13.87991715]
[1756822071539,12.21736431,203.81,203.79,0.14216157]
[1756822071848,26.0,203.84,203.81,0.14216157]
[1756822072038,12.21736431,203.85,203.81,0.14216157]
[1756822072214,26.71,203.89,203.81,14.02207872]
[1756822072415,12.21736431,203.85,203.81,18.92857462]
[1756822072619,12.21736431,203.83,203.81,14.02207872]
[1756822073225,12.21736431,203.83,203.81,0.14216157]
[1756822073427,12.21736431,203.82,203.81,0.14216157]
[1756822073629,12.21736431,203.82,203.81,45.34216157]
[1756822074051,12.21736431,203.82,203.81,45.2]
[1756822074839,12.21736431,203.82,203.78,14.02207872]
[1756822075032,26.0,203.84,203.79,0.14216157]
[1756822075235,12.21736431,203.81,203.8,45.34216157]
[1756822075427,12.21736431,203.81,203.8,0.14216157]
[1756822075657,0.71,203.94,203.81,14.02207872]
[1756822075979,12.21736431,203.91,203.86,12.35952588]
[1756822076264,12.21736431,203.89,203.88,0.14216157]
[1756822076466,12.21736431,203.91,203.88,14.02207872]
[1756822076980,12.21736431,203.89,203.88,0.14216157]
[1756822077132,12.21736431,203.9,203.89,45.18]
[1756822077740,12.21736431,203.9,203.85,0.42648471]
[1756822077944,12.21736431,203.88,203.87,0.14216157]
[1756822078168,26.0,203.92,203.87,0.14216157]
[1756822078369,12.21736431,203.9,203.87,0.14216157]
[1756822078666,12.21736431,203.88,203.87,0.14216157]
[1756822079079,12.21736431,203.88,203.86,45.18]
[1756822079233,0.71,203.94,203.86,45.18]
[1756822079571,12.21736431,203.92,203.87,13.73775558]
[1756822079753,0.06,203.95,203.88,14.67207872]
[1756822079953,12.21736431,203.92,203.88,14.02207872]
[1756822080271,12.21736431,203.9,203.88,14.67207872]
[1756822080457,26.0,203.93,203.88,14.67207872]
[1756822080458,26.0,203.92,203.88,0.42648471]
[1756822080663,12.21736431,203.92,203.91,0.14216157]
[1756822080861,12.21736431,203.92,203.91,45.30216157]
[1756822081166,12.21736431,203.92,203.88,13.87991715]
[1756822081479,26.06,203.95,203.89,45.30216157]
[1756822081658,26.06,203.95,203.89,50.85676699]
[1756822081841,12.21736431,203.92,203.89,45.95216157]
[1756822082264,12.21736431,203.91,203.89,45.30216157]
[1756822082480,26.06,203.95,203.77,0.65]
[1756822082481,12.92736431,203.9,203.77,0.65]
[1756822082650,12.21736431,203.81,203.8,45.14]
[1756822082851,12.21736431,203.86,203.8,58.00736431]
[1756822083057,38.21736431,203.87,203.82,0.14216157]
[1756822083253,38.21736431,203.87,203.84,0.14216157]
[1756822083471,12.21736431,203.9,203.86,0.42648471]
[1756822083778,38.21736431,203.91,203.87,0.65]
[1756822083974,38.21736431,203.92,203.87,0.65]
[1756822084280,4.96340203,203.95,203.86,12.64384902]
[1756822084281,4.96340203,203.95,203.89,0.14216157]
[1756822084454,12.21736431,203.92,203.9,45.14]
[1756822084775,12.21736431,203.91,203.83,0.65]
[1756822084940,12.21736431,203.88,203.85,0.28432314]
[1756822085341,26.0,203.92,203.86,0.14216157]
[1756822085562,12.21736431,203.88,203.86,0.14216157]
[1756822085945,12.21736431,203.9,203.88,0.14216157]
[1756822087044,26.0,203.87,203.86,45.12]
[1756822087250,12.21736431,203.87,203.86,45.12]
[1756822087958,12.21736431,203.87,203.8,0.65]
[1756822087959,38.21736431,203.87,203.8,0.65]
[1756822088153,26.0,203.87,203.8,0.65]
[1756822088352,12.21736431,203.81,203.74,0.65]
[1756822088553,12.21736431,203.78,203.75,45.12]
[1756822088876,12.21736431,203.76,203.71,0.65]
[1756822089172,26.0,203.78,203.73,45.12]
[1756822089472,26.0,203.78,203.74,0.66]
[1756822089646,26.71,203.81,203.73,45.12]
[1756822089842,26.0,203.78,203.67,0.03]
[1756822090059,26.0,203.78,203.73,37.72]
[1756822090286,26.0,203.78,203.74,0.66]
[1756822090583,30.90653614,203.81,203.75,0.14216157]
[1756822090798,43.87286262,203.81,203.72,0.03]
[1756822090984,43.87286262,203.81,203.73,45.1]
[1756822091464,12.21736431,203.74,203.73,45.1]
[1756822091661,12.21736431,203.74,203.73,45.24216157]
[1756822091862,26.7,203.81,203.73,46.18648471]
[1756822092060,12.21736431,203.74,203.73,45.24216157]
[1756822092493,26.7,203.81,203.74,0.28432314]
[1756822092698,26.0,203.81,203.74,0.28432314]
[1756822092902,0.7,203.83,203.74,5.33461652]
[1756822093073,5.60607555,203.83,203.76,0.14216157]
[1756822093395,26.0,203.8,203.76,0.14216157]
[1756822093605,12.21736431,203.77,203.76,0.14216157]
[1756822094172,12.21736431,203.77,203.76,0.80216157]
[1756822094495,12.21736431,203.77,203.74,5.19243768]
[1756822094496,0.7,203.83,203.78,0.14216157]
[1756822094791,17.16948735,203.85,203.72,0.03]
[1756822094792,26.0,203.76,203.72,0.03]
[1756822095263,0.7,203.75,203.72,0.03]
[1756822095777,12.21736431,203.73,203.72,0.03]
[1756822096172,12.91736431,203.73,203.72,0.03]
[1756822096367,12.21736431,203.73,203.72,0.03]
[1756822096611,12.91736431,203.73,203.72,0.03]
[1756822096901,12.21736431,203.73,203.72,0.03]
[1756822098695,0.7,203.87,203.75,14.02207872]
[1756822098882,12.21736431,203.84,203.79,0.28432314]
[1756822099081,12.21736431,203.82,203.81,0.14216157]
[1756822099315,12.21736431,203.82,203.79,45.06]
[1756822099496,12.21736431,203.81,203.79,45.06]
[1756822099690,26.7,203.86,203.75,26.75728146]
[1756822099691,12.21736431,203.8,203.75,0.28432314]
[1756822099890,12.21736431,203.76,203.75,0.14216157]
[1756822100214,12.21736431,203.76,203.74,18.96]
[1756822100407,12.21736431,203.75,203.74,18.96]
[1756822100604,12.21736431,203.75,203.73,0.03]
[1756822100804,17.12558066,203.74,203.73,0.03]
[1756822101390,12.21736431,203.74,203.73,0.03]
[1756822101594,12.91736431,203.74,203.73,0.03]
[1756822101927,12.21736431,203.74,203.73,0.03]
[1756822102293,12.91736431,203.74,203.73,0.03]
[1756822102515,12.2677633,203.79,203.73,0.03]
[1756822102701,0.7,203.81,203.73,0.03]
[1756822103017,12.21736431,203.74,203.73,0.03]
[1756822103189,26.0,203.76,203.73,0.03]
[1756822103387,12.21736431,203.74,203.73,0.03]
[1756822103900,12.21736431,203.74,203.73,0.69]
[1756822104105,12.21736431,203.74,203.73,0.17216157]
[1756822104302,12.21736431,203.74,203.73,0.03]
[1756822104687,17.12558066,203.74,203.73,0.03]
[1756822104891,12.21736431,203.74,203.73,0.03]
[1756822105330,17.12558066,203.74,203.73,0.03]
[1756822105492,12.21736431,203.74,203.73,0.03]
[1756822106614,31.6065399,203.81,203.74,0.14216157]
[1756822106845,12.21736431,203.75,203.74,0.14216157]
[1756822107047,12.21736431,203.75,203.73,0.03]
[1756822107344,12.21736431,203.74,203.73,0.03]
[1756822108635,38.21736431,203.74,203.73,0.03]
[1756822108836,43.12558066,203.74,203.73,0.03]
[1756822109215,17.82558066,203.74,203.73,0.03]
[1756822109485,17.82558066,203.74,203.69,0.03]
[1756822109486,26.0,203.7,203.69,0.03]
[1756822109639,34.11874942,203.7,203.69,0.03]
[1756822109841,34.81874942,203.7,203.69,0.03]
[1756822110645,8.11874942,203.68,203.67,0.03]
[1756822110854,26.0,203.64,203.57,0.1]
[1756822111154,8.11874942,203.58,203.57,0.1]
[1756822111665,8.11874942,203.59,203.57,0.76]
[1756822111831,8.11874942,203.59,203.57,0.1]
[1756822112223,8.11874942,203.58,203.57,0.1]
[1756822112634,26.0,203.61,203.57,0.1]
[1756822112832,8.11874942,203.58,203.57,0.90216157]
[1756822113038,26.0,203.61,203.57,0.90216157]
[1756822113253,14.29559401,203.69,203.58,0.14216157]
[1756822113459,8.11874942,203.6,203.58,0.14216157]
[1756822114048,8.11874942,203.59,203.58,0.14216157]
[1756822114252,0.7,203.66,203.58,0.14216157]
[1756822114457,8.11874942,203.61,203.58,0.80216157]
[1756822114665,13.03080744,203.59,203.57,0.1]
[1756822114965,0.7,203.63,203.57,0.1]
[1756822115160,8.11874942,203.59,203.57,0.1]
[1756822115363,26.0,203.61,203.57,0.1]
[1756822115547,8.11874942,203.58,203.57,0.1]
[1756822116039,8.11874942,203.59,203.57,0.1]
[1756822116238,26.0,203.61,203.57,0.1]
[1756822116239,8.11874942,203.61,203.57,0.76]
[1756822116457,8.11874942,203.59,203.57,0.1]
[1756822116665,8.11874942,203.59,203.58,0.03]
[1756822116984,0.7,203.65,203.58,0.03]
[1756822117169,0.06,203.7,203.58,0.31432314]
[1756822117363,0.06,203.7,203.6,8.40307256]
[1756822117364,8.11874942,203.66,203.6,8.40307256]
[1756822117956,8.11874942,203.65,203.6,0.28432314]
[1756822118264,8.11874942,203.65,203.62,0.14216157]
[1756822118566,8.11874942,203.65,203.62,0.80216157]
[1756822118761,8.11874942,203.69,203.64,5.05263401]
[1756822118961,8.11874942,203.68,203.64,0.80216157]
[1756822119164,0.06,203.7,203.66,0.14216157]
[1756822119345,4.96937301,203.7,203.59,13.59559401]
[1756822119544,8.11874942,203.63,203.61,0.42648471]
[1756822119760,8.11874942,203.62,203.61,0.42648471]
[1756822119943,8.11874942,203.63,203.61,0.42648471]
[1756822122077,8.17874942,203.7,203.66,0.14216157]
[1756822122279,0.06,203.7,203.68,0.14216157]
[1756822122585,8.11874942,203.69,203.64,14.02207872]
[1756822122881,8.11874942,203.67,203.66,0.14216157]
[1756822123248,26.0,203.69,203.66,0.14216157]
[1756822123454,0.06,203.7,203.66,0.42648471]
[1756822123756,0.06,203.7,203.67,0.66]
[1756822123973,0.06,203.7,203.69,0.14216157]
[1756822124583,0.06,203.7,203.69,0.80216157]
[1756822124755,0.06,203.7,203.69,27.42592617]
[1756822124960,0.06,203.73,203.71,0.14216157]
[1756822125161,0.06,203.73,203.72,59.33775558]
[1756822125362,0.06,203.73,203.72,67.456505]
[1756822125758,0.06,203.75,203.73,14.02207872]
[1756822125960,0.06,203.75,203.74,22.14082814]
[1756822126184,0.06,203.75,203.74,22.80082814]
[1756822126603,1e-08,203.75,203.74,27.70904449]
[1756822126807,0.76,203.89,203.78,13.59559401]
[1756822126808,0.06,203.89,203.78,13.59559401]
[1756822127082,0.06,203.89,203.87,8.11874942]
[1756822127266,0.06,203.89,203.88,45.20432314]
[1756822128382,0.06,203.89,203.88,45.04216157]
[1756822128887,8.17874942,203.89,203.84,0.28432314]
[1756822129057,0.06,203.89,203.87,44.9]
[1756822129476,26.06,203.89,203.87,44.9]
[1756822129689,26.0,203.87,203.76,0.66]
[1756822129903,26.0,203.87,203.77,44.88]
[1756822130195,8.11874942,203.8,203.78,0.14216157]
[1756822130397,8.11874942,203.8,203.77,44.88]
[1756822130680,8.11874942,203.8,203.78,0.14216157]
[1756822130865,26.0,203.83,203.77,44.88]
[1756822131075,26.0,203.83,203.8,0.14216157]
[1756822131272,26.0,203.83,203.82,0.14216157]
[1756822131572,8.11874942,203.83,203.82,45.00216157]
[1756822131771,8.11874942,203.83,203.82,44.86]
[1756822131970,34.81874942,203.83,203.77,0.14216157]
[1756822132161,26.0,203.83,203.79,44.86]
[1756822132768,26.0,203.8,203.73,13.59559401]
[1756822132973,26.0,203.79,203.74,44.86]
[1756822133170,8.11874942,203.76,203.74,44.86]
[1756822133486,8.11874942,203.76,203.75,44.86]
[1756822133689,8.11874942,203.77,203.75,44.86]
[1756822133894,26.0,203.8,203.76,0.42648471]
[1756822134099,8.11874942,203.79,203.76,0.42648471]
[1756822134665,8.11874942,203.82,203.78,0.42648471]
[1756822134970,8.11874942,203.83,203.78,8.54523413]
[1756822135189,26.0,203.84,203.78,8.54523413]
[1756822135384,8.11874942,203.85,203.8,0.28432314]
[1756822135569,0.06,203.89,203.82,0.14216157]
[1756822135758,8.11874942,203.85,203.82,0.14216157]
[1756822135965,8.11874942,203.84,203.82,0.14216157]
[1756822136187,8.11874942,203.83,203.81,44.82]
[1756822136489,34.11874942,203.82,203.81,44.82]
[1756822137189,34.11874942,203.82,203.81,44.96216157]
[1756822137370,0.06,203.86,203.82,0.14216157]
[1756822137570,8.11874942,203.84,203.82,0.14216157]
[1756822138278,8.11874942,203.84,203.81,44.46216157]
[1756822138588,8.11874942,203.85,203.81,45.12216157]
[1756822138973,0.06,203.86,203.81,44.46216157]
[1756822138974,8.11874942,203.84,203.81,44.46216157]
[1756822139167,26.06,203.86,203.82,0.28432314]
[1756822139371,8.17874942,203.86,203.82,0.28432314]
[1756822139591,8.17874942,203.86,203.82,0.94432314]
[1756822139902,0.06,203.86,203.82,0.94432314]
[1756822140194,0.06,203.86,203.84,0.42648471]
[1756822140371,0.06,203.88,203.85,22.14082814]
[1756822140569,0.06,203.88,203.87,22.14082814]
[1756822141061,0.06,203.88,203.87,22.80082814]
[1756822141266,1e-08,203.91,203.9,40.02207872]
[1756822141510,1e-08,203.95,203.94,40.02207872]
[1756822141692,0.06,204.09,203.98,13.59559401]
[1756822142001,0.06,204.09,203.99,79.94177864]
[1756822142002,1e-08,204.0,203.99,79.94177864]
[1756822142295,1e-08,204.0,203.99,71.82302922]
[1756822142595,1e-08,204.0,203.99,72.48302922]
[1756822142773,1e-08,204.0,203.99,64.3642798]
[1756822142975,1e-08,204.0,203.99,27.70302922]
[1756822143190,1e-08,204.0,203.99,64.3442798]
[1756822143415,1e-08,204.0,203.99,72.46302922]
[1756822143729,1e-08,204.0,203.99,67.56082814]
[1756822144015,1e-08,204.0,203.99,44.76]
[1756822144195,1e-08,204.0,203.99,0.14216157]
[1756822144395,1e-08,204.0,203.99,44.76]
[1756822144609,1e-08,204.0,203.99,44.90216157]
[1756822146211,1e-08,204.0,203.99,72.46302922]
[1756822146517,1e-08,204.0,203.99,80.58177864]
[1756822146707,0.06,204.05,204.04,22.14082814]
[1756822146909,0.06,204.05,204.04,66.86082814]
[1756822147089,0.06,204.05,204.04,67.52082814]
[1756822147285,0.06,204.05,204.04,22.14082814]
[1756822147608,0.06,204.05,204.04,66.86082814]
[1756822148088,0.06,204.05,204.04,22.14082814]
[1756822148285,0.06,204.05,204.04,22.80082814]
[1756822148499,0.06,204.05,204.04,72.40182794]
[1756822148898,0.06,204.05,204.04,71.74182794]
[1756822149127,0.06,204.05,204.04,72.45182794]
[1756822149286,0.06,204.08,204.04,72.45182794]
[1756822149287,0.06,204.08,204.05,40.02207872]
[1756822149492,0.06,204.08,204.07,48.14082814]
[1756822149710,0.06,204.08,204.07,92.84082814]
[1756822149908,0.06,204.1,204.08,14.02207872]
[1756822150113,0.06,204.1,204.08,27.75086734]
[1756822150425,0.06,204.1,204.08,19.63211792]
[1756822150603,0.06,204.1,204.08,72.43086734]
[1756822150792,0.06,204.1,204.08,27.75086734]
[1756822151304,0.06,204.1,204.08,72.43086734]
[1756822152416,0.06,204.1,204.08,14.02207872]
[1756822152709,0.06,204.1,204.08,13.73775558]
[1756822152911,34.83874942,204.09,203.96,4.90292214]
[1756822153119,8.11874942,204.04,203.98,8.11874942]
[1756822153412,8.11874942,204.04,203.97,38.3]
[1756822153413,8.11874942,204.03,203.97,46.41874942]
[1756822153736,8.11874942,204.08,204.03,0.28432314]
[1756822153898,26.06,204.09,204.0,14.02207872]
[1756822153899,0.66,204.07,204.04,44.64]
[1756822154220,8.11874942,204.05,204.0,13.59559401]
[1756822154530,8.11874942,204.03,204.01,44.64]
[1756822154718,8.11874942,204.03,204.02,44.64]
[1756822154895,8.11874942,204.04,204.02,44.64]
[1756822155090,8.11874942,204.05,204.02,44.64]
[1756822155312,0.66,204.07,204.02,44.64]
[1756822155626,0.66,204.07,204.03,0.28432314]
[1756822155627,8.11874942,204.07,204.03,0.28432314]
[1756822155831,8.11874942,204.04,203.94,13.87991715]
[1756822156006,4.90005542,204.08,203.96,13.59559401]
[1756822156007,26.0,204.05,203.96,13.59559401]
[1756822156206,26.0,204.08,204.04,8.11874942]
[1756822156408,0.06,204.09,204.06,22.14082814]
[1756822156609,0.06,204.09,204.08,0.14216157]
[1756822157029,0.06,204.09,204.08,0.42648471]
[1756822157321,0.06,204.09,204.08,22.14082814]
[1756822157499,0.06,204.09,204.08,14.02207872]
[1756822158123,0.06,204.09,204.08,22.14082814]
[1756822158335,0.06,204.09,204.08,58.64207872]
[1756822158950,0.06,204.09,204.06,0.14216157]
[1756822159247,0.06,204.09,204.08,0.14216157]
[1756822159417,0.06,204.09,204.08,44.74216157]
[1756822159616,8.17874942,204.09,204.08,44.74216157]
[1756822159824,26.0,204.06,203.95,0.71]
[1756822160025,8.11874942,203.99,203.96,44.6]
[1756822160324,8.11874942,203.97,203.91,5.61402087]
[1756822160525,8.11874942,203.97,203.92,44.6]
[1756822160734,26.0,204.01,203.94,14.02207872]
[1756822160914,8.11874942,203.98,203.94,14.02207872]
[1756822161123,8.11874942,203.97,203.94,13.59559401]
[1756822161324,8.11874942,203.96,203.95,44.58]
[1756822161635,26.0,204.03,203.95,45.29]
[1756822161813,8.11874942,204.0,203.96,14.02207872]
[1756822162022,8.11874942,203.97,203.91,13.59559401]
[1756822162225,8.11874942,203.97,203.9,36.09]
[1756822162226,4.9017205,204.01,203.93,13.59559401]
[1756822162426,8.11874942,203.96,203.93,13.59559401]
[1756822162624,0.66,204.02,203.93,18.49914222]
[1756822162835,8.11874942,203.98,203.93,18.49914222]
[1756822163017,8.11874942,204.0,203.96,0.42648471]
[1756822163224,8.11874942,203.97,203.91,0.14216157]
[1756822163424,8.11874942,203.95,203.91,58.31775558]
[1756822163645,8.11874942,203.96,203.93,0.14216157]
[1756822163816,26.66,204.01,203.93,0.14216157]
[1756822164017,8.11874942,203.95,203.93,0.28432314]
[1756822164431,8.11874942,203.94,203.93,0.28432314]
[1756822164629,8.11874942,203.94,203.9,35.38]
[1756822164824,8.11874942,203.91,203.9,48.97559401]
[1756822165132,8.11874942,203.91,203.9,93.96207872]
[1756822165321,0.66,203.99,203.9,94.24559401]
[1756822165539,8.11874942,203.94,203.9,99.1499489]
[1756822165743,8.11874942,203.96,203.92,0.14216157]
[1756822165943,16.38789101,204.08,203.94,14.02207872]
[1756822165944,8.11874942,204.0,203.94,14.02207872]
[1756822166144,8.11874942,204.02,203.99,0.14216157]
[1756822166328,0.66,204.01,204.0,44.56]
[1756822166523,8.11874942,204.01,204.0,44.56]
[1756822166747,8.11874942,204.01,204.0,44.70216157]
[1756822166931,0.66,204.04,204.0,44.70216157]
[1756822167145,0.06,204.09,204.01,0.14216157]
[1756822167350,8.11874942,204.05,204.01,0.14216157]
[1756822167535,0.66,204.08,204.01,14.02207872]
[1756822167856,8.11874942,204.05,204.01,14.02207872]
[1756822168037,0.66,204.08,204.01,14.02207872]
[1756822168038,0.06,204.09,204.04,48.14082814]
[1756822168236,0.06,204.09,203.95,20.0]
[1756822168237,8.11874942,204.05,203.96,13.73775558]
[1756822168442,0.66,204.04,203.98,0.14216157]
[1756822168638,0.66,204.04,203.97,44.54]
[1756822168837,4.9008278,204.05,203.97,44.54]
[1756822168838,0.66,204.03,203.97,44.54]
[1756822169763,12.21079046,203.98,203.95,0.14216157]
[1756822169959,12.21079046,203.96,203.95,0.14216157]
[1756822170162,12.21079046,203.96,203.95,44.68216157]
[1756822170460,12.21079046,203.96,203.95,44.54]
[1756822170752,20.0,204.07,203.95,44.54]
[1756822170753,0.66,204.03,203.95,44.54]
[1756822170958,0.66,204.03,203.96,0.14216157]
[1756822171170,26.0,204.06,203.96,13.87991715]
[1756822171466,12.21079046,203.99,203.96,13.87991715]
[1756822171753,12.21079046,203.99,203.96,14.58991715]
[1756822172055,4.90051945,204.06,203.96,14.58991715]
[1756822172056,12.21079046,203.97,203.96,0.42648471]
[1756822172239,12.21079046,203.98,203.96,58.54207872]
[1756822172443,12.21079046,203.98,203.96,63.4449804]
[1756822172636,26.0,204.06,203.96,0.14216157]
[1756822172637,12.21079046,203.97,203.96,0.14216157]
[1756822172833,12.21079046,203.97,203.96,44.66216157]
[1756822173451,12.21079046,203.97,203.91,0.14216157]
[1756822173650,12.21079046,203.97,203.91,13.59559401]
[1756822173651,12.21079046,203.92,203.91,13.59559401]
[1756822173855,12.87079046,203.92,203.9,44.52]